bitfinex/quotes_SOLUSD_20250416
["timestamp","ask_amount","ask_price","bid_price","bid_amount"]
[1744793698773,14.54040399,124.98,124.93,34.00447141]
[1744793698973,14.54040399,124.98,124.93,48.5448754]
[1744793699179,22.54198745,124.98,124.93,22.5448754]
[1744793699392,22.54198745,124.98,124.93,8.00447141]
[1744793699578,22.54198745,124.98,124.93,22.5448754]
[1744793699781,14.54040399,124.97,124.93,22.5448754]
[1744793700293,14.54040399,124.97,124.93,14.54040399]
[1744793700472,22.54198745,124.98,124.93,14.54040399]
[1744793700675,14.54040399,124.97,124.93,14.54040399]
[1744793700981,14.54040399,124.96,124.91,0.03]
[1744793701199,28.00478397,124.98,124.91,0.03]
[1744793701200,14.54040399,124.94,124.91,0.03]
[1744793701513,8.00260347,124.96,124.92,14.54040399]
[1744793701703,22.54262122,124.97,124.91,18.67964886]
[1744793702009,14.54040399,124.96,124.91,14.57040399]
[1744793702216,14.54040399,124.95,124.91,0.03]
[1744793702795,97.44040399,124.98,124.94,14.54040399]
[1744793702998,12.14,124.99,124.94,14.54040399]
[1744793702999,26.68040399,124.99,124.94,14.54040399]
[1744793703197,14.54040399,124.98,124.93,14.54040399]
[1744793703407,14.54040399,124.98,124.91,18.67964886]
[1744793703690,14.54040399,124.98,124.93,14.54040399]
[1744793704102,22.54218308,124.98,124.93,22.54480426]
[1744793704613,14.54040399,124.97,124.93,22.54480426]
[1744793704918,14.54040399,124.97,124.93,8.00440027]
[1744793705094,14.54040399,124.97,124.93,22.54480426]
[1744793705414,22.54251193,124.97,124.92,22.54523473]
[1744793705614,14.54040399,124.96,124.92,8.00483074]
[1744793705799,8.00210794,124.97,124.93,2.94261128]
[1744793705800,14.54040399,124.95,124.93,2.94261128]
[1744793706403,14.54040399,124.95,124.91,0.03]
[1744793707212,22.54471643,124.94,124.91,0.03]
[1744793707412,14.54040399,124.93,124.92,2.9452424]
[1744793708401,14.54040399,124.93,124.91,0.03]
[1744793708716,14.54040399,124.92,124.91,0.03]
[1744793709307,22.54552726,124.92,124.91,0.03]
[1744793710227,20.0,124.88,124.86,0.03]
[1744793710415,12.14,124.88,124.86,0.03]
[1744793710616,26.68040399,124.88,124.86,0.03]
[1744793711316,8.00512327,124.92,124.87,14.54040399]
[1744793711524,14.54040399,124.91,124.87,14.54040399]
[1744793711699,14.54040399,124.91,124.86,16.16850399]
[1744793712117,8.00512327,124.92,124.86,16.16850399]
[1744793712340,14.54040399,124.91,124.86,16.16850399]
[1744793712618,22.54624788,124.91,124.86,24.1771384]
[1744793712999,22.54624788,124.91,124.87,14.54040399]
[1744793713202,58.14,124.93,124.88,14.54040399]
[1744793713509,14.54040399,124.91,124.86,9.63673441]
[1744793713707,14.54040399,124.91,124.86,24.1771384]
[1744793714523,22.54655364,124.91,124.86,24.1771384]
[1744793714925,14.54040399,124.91,124.86,24.1771384]
[1744793715221,78.15120627,124.93,124.86,24.1771384]
[1744793715222,8.00478342,124.93,124.88,14.54040399]
[1744793715828,14.54040399,124.92,124.87,40.54040399]
[1744793716122,14.54040399,124.92,124.87,26.0]
[1744793716428,14.54040399,124.92,124.87,48.5484081]
[1744793716429,22.54574931,124.92,124.87,48.5484081]
[1744793718027,12.14,124.95,124.9,14.54040399]
[1744793718205,12.14,124.95,124.92,14.54040399]
[1744793718526,22.54255737,124.97,124.92,14.54040399]
[1744793719106,14.54040399,124.97,124.92,14.54040399]
[1744793719599,22.54250372,124.97,124.92,14.54040399]
[1744793719796,14.54040399,124.97,124.92,14.54040399]
[1744793720028,14.54040399,124.97,124.93,8.00448251]
[1744793720816,14.60340399,124.97,124.93,8.00448251]
[1744793721330,14.60340399,124.97,124.92,8.00494798]
[1744793721524,14.60340399,124.97,124.92,22.54535197]
[1744793722024,0.063,124.97,124.93,14.54040399]
[1744793722216,0.063,124.97,124.93,22.54462991]
[1744793723327,14.60340399,124.97,124.93,22.54462991]
[1744793724428,0.063,124.97,124.93,22.54462991]
[1744793724628,0.063,124.97,124.95,14.54040399]
[1744793725028,0.063,124.97,124.94,14.54040399]
[1744793725929,0.063,124.97,124.95,14.54040399]
[1744793726121,0.063,124.97,124.96,14.54040399]
[1744793726323,0.063,124.97,124.96,22.5429648]
[1744793726631,0.063,124.97,124.95,22.54339684]
[1744793726932,0.063,124.97,124.96,14.54040399]
[1744793727132,0.063,124.97,124.95,22.54339684]
[1744793728323,0.063,124.97,124.96,14.54040399]
[1744793729436,0.063,124.97,124.95,22.54339684]
[1744793731241,0.063,124.97,124.95,8.00299285]
[1744793732330,0.063,124.97,124.95,22.54339684]
[1744793733647,0.063,124.97,124.96,14.54040399]
[1744793734142,0.063,124.97,124.95,22.54339684]
[1744793735020,14.60340399,124.97,124.93,48.54481915]
[1744793735943,0.063,124.97,124.93,48.54481915]
[1744793736333,0.063,124.97,124.94,14.54040399]
[1744793736534,0.063,124.97,124.96,14.54040399]
[1744793736737,0.063,125.02,124.96,69.85537185]
[1744793737042,0.063,125.02,125.01,14.54040399]
[1744793737249,0.063,125.02,124.99,26.0]
[1744793737449,0.063,125.02,125.01,14.54040399]
[1744793738447,0.063,125.02,125.01,41.1894129]
[1744793740023,0.063,125.02,125.01,22.53976404]
[1744793744145,0.063,125.02,125.01,41.1894129]
[1744793745839,0.063,125.02,125.01,42.7213129]
[1744793746045,0.063,125.02,125.01,68.7213129]
[1744793746728,0.063,125.02,125.01,54.18090891]
[1744793746933,0.063,125.02,125.01,68.7213129]
[1744793749252,0.063,125.02,125.01,26.0]
[1744793749453,0.063,125.02,125.01,33.99936005]
[1744793749655,14.60340399,125.02,124.98,34.0012802]
[1744793750254,14.54040399,125.01,124.97,24.12723689]
[1744793750458,14.60340399,125.02,124.97,24.12723689]
[1744793750762,14.60340399,125.02,124.97,22.54223689]
[1744793750954,14.54040399,125.01,124.97,22.54223689]
[1744793751154,14.54040399,125.01,124.97,8.0018329]
[1744793751354,14.54040399,125.0,124.96,34.00231588]
[1744793751858,14.54040399,125.0,124.96,48.54271987]
[1744793752158,14.54040399,125.01,124.96,48.54271987]
[1744793752461,14.60340399,125.02,124.97,14.54040399]
[1744793752657,14.54040399,125.01,124.97,14.54040399]
[1744793753039,14.54040399,125.01,124.96,48.54271987]
[1744793753446,14.54040399,125.01,124.97,14.54040399]
[1744793753652,0.063,125.02,124.99,14.54040399]
[1744793754461,0.063,125.02,125.0,14.54040399]
[1744793757063,0.063,125.02,125.0,22.53979273]
[1744793757543,0.063,125.02,125.01,14.54040399]
[1744793759461,0.063,125.02,125.01,22.53976404]
[1744793760461,0.063,125.02,125.01,41.1894129]
[1744793760667,0.063,125.04,125.03,44.64964886]
[1744793760964,0.063,125.04,125.03,59.19005285]
[1744793761381,0.063,125.04,125.03,62.10122253]
[1744793761777,0.063,125.04,125.03,70.09930299]
[1744793761978,0.063,125.04,125.03,51.44965413]
[1744793762168,0.063,125.04,125.03,36.90925014]
[1744793763879,0.063,125.04,125.03,48.53848445]
[1744793764278,0.063,125.04,125.03,33.99808046]
[1744793764779,0.063,125.04,125.01,7.9992565]
[1744793764959,0.063,125.04,125.01,22.53966049]
[1744793766383,0.063,125.04,125.01,14.54040399]
[1744793768675,0.063,125.04,125.0,7.99977988]
[1744793769365,0.063,125.04,125.01,14.54040399]
[1744793770384,14.60340399,125.04,125.0,14.54040399]
[1744793770875,14.60340399,125.04,124.99,60.64074987]
[1744793771465,22.60095657,125.04,125.0,2.92694189]
[1744793771883,22.60095657,125.04,124.99,60.64074987]
[1744793772481,14.60340399,125.04,125.0,14.54040399]
[1744793772673,0.063,125.04,125.0,14.54040399]
[1744793772875,0.063,125.04,125.01,14.54040399]
[1744793773075,0.063,125.04,125.02,14.54040399]
[1744793773381,0.063,125.04,125.02,22.53886712]
[1744793773582,0.063,125.04,125.01,22.53944686]
[1744793773760,0.063,125.04,125.01,14.54040399]
[1744793773961,0.063,125.04,125.0,22.53990675]
[1744793774277,0.063,125.04,125.01,2.92727851]
[1744793775067,0.063,125.04,125.0,22.53990675]
[1744793775268,0.063,125.04,124.99,38.1]
[1744793775269,14.54040399,125.03,124.99,38.1]
[1744793775480,14.54040399,125.03,124.99,26.0]
[1744793776283,14.54040399,125.03,124.98,22.54113188]
[1744793776582,14.54040399,125.03,124.99,2.93107476]
[1744793777073,7.99936005,125.01,124.99,2.93107476]
[1744793777260,7.99936005,125.01,124.97,48.5420112]
[1744793777760,22.53976404,125.01,124.97,34.00160721]
[1744793778884,20.79090399,125.0,124.95,20.13311507]
[1744793779179,22.54149948,124.99,124.96,2.93416006]
[1744793779684,14.54040399,124.97,124.95,0.03]
[1744793779863,14.54040399,124.96,124.95,0.03]
[1744793780764,34.54040399,124.96,124.95,0.03]
[1744793781163,42.5429648,124.96,124.95,0.03]
[1744793781464,20.0,124.94,124.92,0.03]
[1744793781658,14.54040399,124.93,124.92,0.03]
[1744793782578,33.19005285,124.93,124.92,0.03]
[1744793783084,41.19453536,124.93,124.92,0.03]
[1744793783479,42.83743536,124.93,124.92,0.03]
[1744793792189,24.1877865,124.93,124.92,0.03]
[1744793793785,42.83743536,124.93,124.92,0.03]
[1744793794193,20.0,124.89,124.87,0.03]
[1744793794384,14.54040399,124.88,124.87,0.03]
[1744793796065,47.73045684,124.88,124.87,0.03]
[1744793796268,20.0,124.87,124.86,0.03]
[1744793796471,34.54040399,124.87,124.86,0.03]
[1744793797576,42.54873265,124.87,124.86,0.03]
[1744793798294,61.19838151,124.87,124.86,0.03]
[1744793798884,73.29838151,124.87,124.86,0.03]
[1744793799283,79.53868151,124.87,124.86,0.03]
[1744793799486,79.53868151,124.87,124.84,0.03]
[1744793799487,64.64964886,124.85,124.84,0.03]
[1744793799792,20.0,124.83,124.82,0.03]
[1744793799993,53.19005285,124.83,124.82,0.03]
[1744793800585,34.54040399,124.83,124.82,0.03]
[1744793801405,42.5512988,124.83,124.82,0.03]
[1744793801603,20.0,124.81,124.75,2.8738231]
[1744793801793,14.54040399,124.8,124.75,25.42991583]
[1744793802423,20.0,124.81,124.75,10.88951184]
[1744793802593,34.54040399,124.81,124.76,14.54040399]
[1744793803309,14.54040399,124.79,124.75,2.8738231]
[1744793803604,42.55397717,124.79,124.75,2.8738231]
[1744793803985,14.54040399,124.8,124.76,14.54040399]
[1744793804406,42.5528296,124.81,124.76,14.54040399]
[1744793806408,22.55346598,124.8,124.75,25.43004854]
[1744793806595,14.54040399,124.8,124.76,14.54040399]
[1744793806802,22.55285351,124.81,124.76,14.54040399]
[1744793807108,14.54040399,124.84,124.79,14.54040399]
[1744793807414,12.12,124.86,124.82,14.54040399]
[1744793807710,34.66945796,124.86,124.82,14.54040399]
[1744793807906,34.66945796,124.86,124.81,14.54040399]
[1744793808518,34.66945796,124.86,124.81,22.55231488]
[1744793809616,26.66040399,124.86,124.81,22.55231488]
[1744793809934,34.66940493,124.86,124.81,22.55231488]
[1744793810113,26.66040399,124.86,124.81,22.55231488]
[1744793810317,12.12,124.86,124.82,14.54040399]
[1744793810614,12.12,124.86,124.82,22.55187924]
[1744793811000,26.0,124.89,124.84,14.54040399]
[1744793811192,14.54040399,124.88,124.83,14.54040399]
[1744793812616,22.54823648,124.88,124.83,22.55097196]
[1744793812821,22.54823648,124.88,124.83,14.54040399]
[1744793813121,8.00783249,124.88,124.83,14.54040399]
[1744793813412,14.54040399,124.88,124.82,26.0]
[1744793813619,14.54040399,124.88,124.83,14.54040399]
[1744793814118,14.54040399,124.88,124.8,1.6586]
[1744793814119,14.54040399,124.85,124.8,1.6586]
[1744793814297,14.54040399,124.85,124.8,16.19900399]
[1744793814498,22.55064656,124.85,124.8,16.19900399]
[1744793815017,22.55064656,124.85,124.8,42.19900399]
[1744793815619,22.55064656,124.85,124.8,50.21157565]
[1744793816220,8.00918774,124.86,124.81,14.54040399]
[1744793816409,22.54959173,124.86,124.81,14.54040399]
[1744793816611,14.54040399,124.85,124.8,42.19900399]
[1744793816814,14.54040399,124.84,124.8,27.6586]
[1744793817004,14.54040399,124.85,124.8,42.19900399]
[1744793817456,14.54040399,124.85,124.8,1.6586]
[1744793817623,14.54040399,124.84,124.8,1.6586]
[1744793818127,14.54040399,124.85,124.8,24.21163229]
[1744793818511,8.01025312,124.84,124.8,16.19900399]
[1744793819803,8.01025312,124.84,124.8,24.21181273]
[1744793820007,14.54040399,124.86,124.81,14.54040399]
[1744793820623,22.54964273,124.86,124.82,22.55184732]
[1744793820827,102.9,124.87,124.84,14.54040399]
[1744793820828,82.9,124.87,124.84,14.54040399]
[1744793821123,8.00802907,124.88,124.84,14.54040399]
[1744793821635,22.54843306,124.88,124.84,14.54040399]
[1744793822333,22.54843306,124.88,124.83,22.5509229]
[1744793823433,22.54843306,124.88,124.84,14.54040399]
[1744793823616,8.00802907,124.88,124.84,14.54040399]
[1744793824013,22.54773837,124.89,124.84,22.55047916]
[1744793824334,95.02,124.9,124.86,14.54040399]
[1744793824335,20.12671629,124.9,124.86,14.54040399]
[1744793824532,12.12,124.9,124.86,16.05740399]
[1744793824719,8.00601332,124.91,124.87,14.54040399]
[1744793825425,22.54581189,124.92,124.87,14.54040399]
[1744793825634,22.54581189,124.92,124.87,22.54857963]
[1744793825819,8.0054079,124.92,124.88,14.54040399]
[1744793826018,117.50340399,124.93,124.87,8.00817564]
[1744793826019,8.06775525,124.93,124.89,14.54040399]
[1744793826326,22.60815924,124.93,124.88,14.54040399]
[1744793826527,0.063,124.93,124.9,14.54040399]
[1744793827137,0.063,124.93,124.92,48.35750399]
[1744793827332,0.063,124.99,124.92,67.00715285]
[1744793827534,0.063,124.99,124.94,18.64964886]
[1744793827839,0.063,124.99,124.96,14.54040399]
[1744793828624,0.063,124.99,124.96,22.54290416]
[1744793829139,0.063,124.99,124.95,22.5433574]
[1744793829333,0.063,124.99,124.95,8.00295341]
[1744793829638,0.063,124.99,124.97,14.54040399]
[1744793830139,0.063,124.99,124.96,18.64964886]
[1744793830442,0.063,124.99,124.97,14.54040399]
[1744793830831,0.063,124.99,124.97,22.54220746]
[1744793831647,0.063,124.99,124.95,26.0]
[1744793831831,14.60340399,124.99,124.95,26.0]
[1744793832142,14.60340399,124.99,124.94,22.54403113]
[1744793832942,14.54040399,124.98,124.93,40.54040399]
[1744793833142,14.54040399,124.97,124.92,15.8219409]
[1744793833641,14.54040399,124.94,124.9,14.54040399]
[1744793833841,14.54040399,124.94,124.91,26.0]
[1744793834730,22.54386602,124.95,124.91,26.0]
[1744793834958,8.00282307,124.96,124.91,34.00572429]
[1744793835248,14.54040399,124.95,124.91,48.54612828]
[1744793836464,22.54370884,124.95,124.91,26.0]
[1744793836840,8.00208342,124.97,124.91,48.54608316]
[1744793837044,14.54040399,124.96,124.92,14.54040399]
[1744793837244,23.25286672,124.96,124.92,23.25286672]
[1744793837456,8.00208342,124.97,124.91,34.00567917]
[1744793837457,23.25286672,124.94,124.91,26.0]
[1744793837664,23.25286672,124.95,124.91,26.0]
[1744793838158,31.25638994,124.95,124.91,26.0]
[1744793841166,8.00352322,124.95,124.91,26.0]
[1744793841467,31.25638994,124.95,124.91,26.0]
[1744793842567,31.25638994,124.95,124.9,23.25286672]
[1744793842969,31.25561382,124.96,124.91,23.25286672]
[1744793843358,23.25286672,124.95,124.91,23.25286672]
[1744793844071,23.25286672,124.95,124.91,31.25840365]
[1744793844677,31.25496854,124.97,124.92,23.25286672]
[1744793845264,43.35439625,124.98,124.94,23.25286672]
[1744793846671,43.35439625,124.98,124.93,31.25692518]
[1744793846870,43.35439625,124.98,124.94,23.25286672]
[1744793847065,43.35439625,124.98,124.93,31.25692518]
[1744793848575,23.25286672,124.96,124.92,8.00482168]
[1744793848778,23.25286672,124.96,124.92,31.2576884]
[1744793848974,23.25286672,124.97,124.92,31.2576884]
[1744793849269,43.35439625,124.98,124.93,23.25286672]
[1744793849470,20.10152953,124.98,124.94,23.25286672]
[1744793849682,12.1,124.98,124.94,23.25286672]
[1744793850057,43.35431928,124.98,124.93,41.90251558]
[1744793850382,23.25286672,124.95,124.89,27.581]
[1744793850678,23.25286672,124.94,124.9,41.90251558]
[1744793851047,23.25286672,124.94,124.9,23.25286672]
[1744793851249,23.25286672,124.93,124.89,27.581]
[1744793851467,23.25286672,124.94,124.89,58.84080862]
[1744793851671,23.25286672,124.95,124.9,23.25286672]
[1744793852270,23.25286672,124.94,124.89,58.84080862]
[1744793852670,31.25691219,124.94,124.89,58.84080862]
[1744793852976,31.25620179,124.95,124.9,23.25286672]
[1744793854087,31.25620179,124.95,124.9,31.25876046]
[1744793855475,23.25286672,124.94,124.89,58.84066909]
[1744793855774,31.25620179,124.95,124.9,23.25286672]
[1744793856273,31.25620179,124.95,124.9,31.25910354]
[1744793857979,23.25286672,124.95,124.9,8.00623682]
[1744793858191,23.25286672,124.96,124.92,23.25286672]
[1744793858371,31.25556976,124.96,124.91,41.90251558]
[1744793859264,14.53354806,124.94,124.9,8.00623682]
[1744793859498,14.53354806,124.95,124.9,22.53978488]
[1744793860286,8.00384184,124.94,124.9,22.53978488]
[1744793860786,22.5373899,124.94,124.9,22.53978488]
[1744793862579,22.5373899,124.94,124.9,14.53354806]
[1744793862775,22.5373899,124.94,124.9,22.53991323]
[1744793863277,22.53644014,124.96,124.91,14.53354806]
[1744793864993,8.00289208,124.96,124.92,14.53354806]
[1744793865163,22.53644014,124.96,124.91,22.53927758]
[1744793865586,40.06518033,124.99,124.95,14.53354806]
[1744793865587,0.063,124.99,124.95,14.53354806]
[1744793865964,0.063,124.99,124.97,14.53354806]
[1744793866893,0.063,124.99,124.96,22.53553068]
[1744793867078,0.063,124.99,124.96,14.53354806]
[1744793867394,0.063,124.99,124.96,22.5360706]
[1744793867595,0.063,124.99,124.95,40.53354806]
[1744793867800,0.063,124.99,124.95,48.53646229]
[1744793868295,0.063,124.99,124.95,40.53354806]
[1744793868485,22.59745757,124.99,124.95,26.0]
[1744793868686,8.06390951,124.99,124.95,40.53354806]
[1744793869191,8.06377203,124.99,124.95,40.53354806]
[1744793869400,22.59732009,124.99,124.95,26.0]
[1744793869597,22.59732009,124.99,124.95,34.00316015]
[1744793869804,0.063,124.99,124.95,48.53670821]
[1744793870112,0.063,124.99,124.96,14.53354806]
[1744793870804,0.063,124.99,124.96,22.53597372]
[1744793871096,0.063,124.99,124.95,48.53649613]
[1744793871278,14.59654806,124.99,124.95,34.00294807]
[1744793871694,14.59654806,124.99,124.95,26.0]
[1744793871900,14.53354806,124.96,124.92,52.61354806]
[1744793872096,14.53354806,124.96,124.91,24.06719702]
[1744793872487,14.53354806,124.96,124.92,14.53354806]
[1744793872905,14.53354806,124.96,124.93,2.94150303]
[1744793873081,22.53614777,124.96,124.93,2.94150303]
[1744793873281,14.53354806,124.95,124.93,2.94150303]
[1744793873482,14.53354806,124.94,124.93,2.94150303]
[1744793873710,14.53354806,124.94,124.9,8.00620316]
[1744793874579,8.00375374,124.95,124.91,2.94317846]
[1744793874580,34.53354806,124.95,124.91,2.94317846]
[1744793874785,14.53354806,124.92,124.91,2.94317846]
[1744793874989,28.00896285,124.96,124.91,2.94317846]
[1744793875298,14.53354806,124.94,124.91,2.94317846]
[1744793875609,14.53354806,124.95,124.9,14.53354806]
[1744793876115,14.53354806,124.92,124.88,24.14991373]
[1744793876286,14.53354806,124.93,124.88,16.14254806]
[1744793876491,14.53354806,124.93,124.88,9.61661986]
[1744793876691,14.53354806,124.93,124.89,14.53354806]
[1744793877007,14.53354806,124.93,124.9,2.94499951]
[1744793877525,14.53354806,124.93,124.89,14.53354806]
[1744793878805,14.53354806,124.93,124.89,22.54035671]
[1744793879316,22.53674934,124.95,124.9,14.53354806]
[1744793879491,22.53674934,124.95,124.91,2.94426101]
[1744793879816,14.53354806,124.94,124.91,2.94426101]
[1744793880512,14.53354806,124.94,124.89,22.54035671]
[1744793881019,97.43354806,124.96,124.91,22.53931221]
[1744793881228,34.61577225,124.97,124.92,14.53354806]
[1744793881396,14.53354806,124.95,124.91,8.00576415]
[1744793881800,14.53354806,124.95,124.91,22.53931221]
[1744793881995,14.53354806,124.95,124.9,48.53978498]
[1744793882308,14.53354806,124.93,124.92,2.9432699]
[1744793882501,14.53354806,124.94,124.92,2.9432699]
[1744793882821,142.98702534,124.97,124.92,2.9432699]
[1744793883119,142.98702534,124.97,124.91,8.00541483]
[1744793883120,14.53354806,124.95,124.91,8.00541483]
[1744793883513,14.53354806,124.96,124.91,22.53896289]
[1744793884123,14.53354806,124.95,124.91,8.00541483]
[1744793884721,14.53354806,124.95,124.92,2.943425]
[1744793885030,22.53679084,124.95,124.92,2.943425]
[1744793885520,12.08,124.97,124.92,10.94852627]
[1744793885825,14.53354806,124.96,124.92,22.53864933]
[1744793886026,26.61354806,124.97,124.92,22.53864933]
[1744793886203,14.59654806,124.99,124.94,14.53354806]
[1744793886405,14.53354806,124.95,124.91,8.00559017]
[1744793886907,14.53354806,124.96,124.91,22.53913823]
[1744793887513,14.53354806,124.96,124.92,2.94200379]
[1744793887712,14.53354806,124.97,124.92,17.47555185]
[1744793888325,14.53354806,124.97,124.93,2.94200379]
[1744793888526,14.53354806,124.98,124.93,17.47555185]
[1744793889099,14.53354806,124.98,124.94,10.94584563]
[1744793889622,14.53354806,124.95,124.94,2.94200379]
[1744793889798,14.53354806,124.95,124.91,34.00544052]
[1744793890195,8.00144522,124.98,124.91,48.53898858]
[1744793890394,14.53354806,124.97,124.92,14.53354806]
[1744793890699,14.53354806,124.96,124.92,33.18319692]
[1744793890893,14.53354806,124.96,124.93,2.94172571]
[1744793891906,14.53354806,124.96,124.92,26.65433838]
[1744793892226,14.53354806,124.95,124.91,34.00545979]
[1744793892809,14.53354806,124.95,124.92,2.9403473]
[1744793893135,22.53482826,124.98,124.92,36.12354422]
[1744793893314,22.53482826,124.98,124.93,14.53354806]
[1744793893624,22.53482826,124.98,124.94,2.9403473]
[1744793894326,14.53354806,124.96,124.91,40.53354806]
[1744793894517,14.53354806,124.95,124.91,26.0]
[1744793895025,8.0012802,124.98,124.93,14.53354806]
[1744793895324,22.53482826,124.98,124.93,14.53354806]
[1744793895524,22.53562739,124.97,124.92,44.12746086]
[1744793896029,22.53562739,124.97,124.93,2.93961026]
[1744793896219,14.53354806,124.97,124.93,2.93961026]
[1744793896415,22.53511451,124.98,124.93,17.47315832]
[1744793896821,8.00156645,124.98,124.93,17.47315832]
[1744793897129,22.53511451,124.98,124.93,17.47315832]
[1744793897424,22.53511451,124.98,124.94,2.93961026]
[1744793898227,22.53511451,124.98,124.93,22.53762449]
[1744793899715,14.53354806,124.98,124.94,14.53354806]
[1744793900037,22.59750045,124.99,124.94,14.53354806]
[1744793900414,8.06395239,124.99,124.94,14.53354806]
[1744793900610,0.063,124.99,124.96,14.53354806]
[1744793901113,0.063,124.99,124.97,14.53354806]
[1744793901310,0.063,124.99,124.98,36.11212061]
[1744793901514,0.063,124.99,124.98,44.11340081]
[1744793902405,0.063,124.99,124.98,17.46247175]
[1744793902608,14.59654806,124.99,124.98,2.92892369]
[1744793903010,34.59654806,124.99,124.98,2.92892369]
[1744793903423,34.59654806,124.99,124.92,35.5260286]
[1744793903732,14.53354806,124.96,124.92,35.5260286]
[1744793903930,0.063,124.99,124.97,18.64964886]
[1744793904136,0.063,124.99,124.98,14.53354806]
[1744793905003,0.063,124.99,124.98,17.46259155]
[1744793905844,0.063,124.99,124.98,10.93032369]
[1744793906212,0.063,124.99,124.98,2.92904349]
[1744793906434,14.59654806,124.99,124.98,2.92904349]
[1744793906943,0.063,124.99,124.96,14.53354806]
[1744793907135,0.063,124.99,124.98,14.53354806]
[1744793908019,0.063,124.99,124.97,8.00161544]
[1744793908430,34.53354806,124.98,124.92,9.52607117]
[1744793908729,14.53354806,124.94,124.91,8.00550922]
[1744793908930,14.53354806,124.94,124.91,34.00550922]
[1744793909439,14.53354806,124.95,124.92,2.92929169]
[1744793910435,14.53354806,124.95,124.91,34.00550922]
[1744793910639,20.0,124.98,124.92,14.53354806]
[1744793910935,14.53354806,124.98,124.93,14.53354806]
[1744793911238,14.53354806,124.98,124.93,17.46140202]
[1744793912143,8.06399378,124.99,124.94,25.46468706]
[1744793912325,8.06399378,124.99,124.96,14.53354806]
[1744793912326,0.063,124.99,124.96,14.53354806]
[1744793912919,0.063,124.99,124.97,14.53354806]
[1744793913127,0.063,124.99,124.97,23.23346057]
[1744793913421,0.063,124.99,124.96,41.88310943]
[1744793913741,0.063,124.99,124.97,2.92434685]
[1744793913929,0.063,124.99,124.97,26.15780742]
[1744793914348,0.063,124.99,124.98,8.0012802]
[1744793914537,0.063,124.99,124.98,31.23474077]
[1744793914949,0.063,124.99,124.98,49.88438963]
[1744793915322,0.063,124.99,124.98,2.92312276]
[1744793916031,0.063,124.99,124.97,57.23509882]
[1744793916340,0.063,124.99,124.98,31.23474077]
[1744793917541,0.063,124.99,124.98,8.0012802]
[1744793917740,0.063,124.99,124.98,34.15664492]
[1744793917938,0.063,124.99,124.98,10.92318435]
[1744793918123,0.063,124.99,124.98,31.23474077]
[1744793919146,0.063,124.99,124.98,49.88438963]
[1744793919945,0.063,124.99,124.98,52.80253045]
[1744793921050,23.29646057,124.99,124.98,2.91814082]
[1744793922152,0.063,124.99,124.95,31.23636717]
[1744793922451,0.063,124.99,124.96,23.23346057]
[1744793922651,0.063,124.99,124.97,8.00192046]
[1744793922953,0.063,124.99,124.98,41.88310943]
[1744793923637,0.063,124.99,124.98,44.8010561]
[1744793923831,0.063,124.99,124.98,46.3225561]
[1744793924650,0.063,124.99,124.98,54.3238363]
[1744793925039,1e-08,124.99,124.98,54.3238363]
[1744793930463,1e-08,124.99,124.98,66.3638363]
[1744793932858,1e-08,125.01,125.0,41.88310943]
[1744793933355,1e-08,125.01,125.0,44.8010561]
[1744793933855,1e-08,125.01,125.0,52.8010561]
[1744793935245,1e-08,125.01,125.0,44.0697253]
[1744793935562,1e-08,125.02,125.01,18.64964886]
[1744793935745,1e-08,125.02,125.01,47.6539084]
[1744793935950,1e-08,125.02,125.01,33.15177863]
[1744793936160,1e-08,125.02,125.01,36.0697253]
[1744793936867,1e-08,125.02,125.01,44.06908535]
[1744793937047,1e-08,125.02,125.01,70.06908535]
[1744793937242,1e-08,125.02,125.01,55.56695558]
[1744793937448,1e-08,125.02,125.01,70.06908535]
[1744793941964,1e-08,125.02,125.01,44.06908535]
[1744793943279,1e-08,125.03,125.01,58.57121512]
[1744793943453,0.063,125.07,125.06,26.0]
[1744793943649,0.063,125.07,125.06,40.50212977]
[1744793944250,0.063,125.07,125.06,59.15177863]
[1744793945154,0.063,125.07,125.06,67.14794047]
[1744793948187,0.063,125.07,125.06,7.99616184]
[1744793948473,0.063,125.07,125.05,20.01659844]
[1744793948778,0.063,125.07,125.04,52.64677086]
[1744793949073,0.063,125.07,125.04,33.997122]
[1744793949668,0.063,125.07,125.04,48.49925177]
[1744793950873,0.063,125.07,125.05,18.64964886]
[1744793951052,0.063,125.07,125.04,48.49925177]
[1744793951254,0.063,125.07,125.05,18.64964886]